bitfinex/quotes_ETHUSD_20240722
["timestamp","ask_amount","ask_price","bid_price","bid_amount"]
[1721646046860,3.87685,3497.9,3497.3,2.85934]
[1721646047161,1.018,3497.9,3497.5,2.85918]
[1721646047319,0.0401726,3497.8,3497.4,2.85926]
[1721646047514,2.85879,3498.0,3497.4,2.85926]
[1721646047750,0.0402712,3497.9,3497.4,2.85926]
[1721646048852,0.0402712,3497.9,3497.6,2.85904]
[1721646049065,0.0402712,3497.9,3497.7,2.85901]
[1721646049222,2.3964,3498.1,3497.7,2.85901]
[1721646049426,0.04016358,3497.8,3497.7,2.85901]
[1721646049739,0.04014357,3497.8,3497.7,2.85901]
[1721646050054,2.3964,3498.1,3497.7,2.85901]
[1721646050565,0.04012072,3498.0,3497.7,2.85901]
[1721646051770,1.05812072,3498.0,3497.2,2.85935]
[1721646052063,1.05812072,3498.0,3497.3,2.85929]
[1721646052064,2.85887,3497.9,3497.3,2.85929]
[1721646052281,2.85887,3497.9,3497.4,2.85926]
[1721646052433,0.04012357,3497.8,3497.3,2.8593]
[1721646052632,2.89906357,3497.8,3497.3,2.8593]
[1721646052978,0.04012357,3497.8,3497.3,2.8593]
[1721646053268,0.04012357,3497.8,3497.3,2.85929]
[1721646053481,0.04012357,3497.8,3497.4,2.85925]
[1721646053852,3.87678,3498.0,3497.4,2.85925]
[1721646054173,2.85886,3497.9,3497.3,2.85929]
[1721646054344,2.89902215,3497.9,3497.3,2.85929]
[1721646054686,2.89902215,3497.9,3497.3,5.71857]
[1721646054975,2.89902215,3497.9,3497.3,2.85928]
[1721646055559,2.85906,3497.7,3497.2,2.85942]
[1721646055938,0.03942837,3497.6,3497.2,2.85942]
[1721646056144,0.03942837,3497.6,3497.2,3.2772227]
[1721646056367,2.89856837,3497.6,3497.2,0.4178027]
[1721646056642,0.03942837,3497.6,3497.2,0.4178027]
[1721646057191,3.87701,3497.8,3497.2,0.4178027]
[1721646057192,0.03938978,3497.5,3497.2,0.4178027]
[1721646057392,3.87701,3497.8,3497.2,0.4178027]
[1721646057563,0.03935118,3497.4,3497.1,2.85945]
[1721646057749,2.85902,3497.7,3497.1,2.85945]
[1721646058085,0.03942837,3497.6,3497.3,2.85934]
[1721646058288,0.03942837,3497.6,3497.4,2.85925]
[1721646058441,2.8589,3497.9,3497.4,2.85925]
[1721646058638,0.03938978,3497.5,3497.4,2.85925]
[1721646058842,2.8589,3497.9,3497.3,2.85933]
[1721646059039,2.8589,3497.9,3496.8,3.2988]
[1721646059040,0.03938978,3497.5,3497.0,2.85954]
[1721646059284,2.8589,3497.9,3497.0,2.85954]
[1721646059285,2.8589,3497.9,3497.1,0.615834]
[1721646059484,0.03935118,3497.4,3497.1,0.615834]
[1721646059664,2.8589,3497.9,3497.1,0.615834]
[1721646059957,2.85902,3497.7,3497.2,2.85942]
[1721646060159,2.85902,3497.7,3497.1,2.85946]
[1721646060498,0.03942837,3497.6,3497.1,2.85946]
[1721646061050,0.03942837,3497.6,3497.2,2.8594]
[1721646061543,0.03942837,3497.6,3497.3,2.85929]
[1721646061746,2.8589,3497.9,3497.4,0.571866]
[1721646061987,1.4543198,3497.8,3497.3,2.85929]
[1721646062173,1.4543198,3497.8,3497.4,2.85925]
[1721646062174,1.49384536,3497.8,3497.4,2.85925]
[1721646062378,1.49384536,3497.8,3496.9,1.018]
[1721646062379,0.03952556,3497.8,3497.1,1.018]
[1721646062694,0.03952556,3497.8,3497.6,2.85905]
[1721646062902,5.2551,3498.1,3497.6,2.85905]
[1721646063217,1.45425291,3498.0,3497.6,2.85905]
[1721646063357,1.49379199,3498.0,3497.3,5.2147]
[1721646063555,1.49379199,3498.0,3497.4,2.85925]
[1721646063556,1.45425291,3497.9,3497.4,2.85925]
[1721646063750,0.03952192,3497.8,3497.4,2.85925]
[1721646064062,0.03952192,3497.8,3497.5,2.85918]
[1721646064472,6.27309,3498.1,3497.5,5.71829]
[1721646064653,0.03948333,3497.7,3497.5,5.71822]
[1721646064849,0.03948333,3497.7,3497.5,3.430932]
[1721646065091,6.27309,3498.1,3497.5,3.430932]
[1721646065289,0.03946475,3497.6,3497.5,2.85911]
[1721646065497,6.27309,3498.1,3497.5,2.85911]
[1721646065655,0.03946475,3497.6,3497.5,2.85911]
[1721646065865,6.27309,3498.1,3497.5,2.85911]
[1721646066064,0.03946475,3497.6,3497.5,2.85911]
[1721646066382,6.27309,3498.1,3497.5,3.430951]
[1721646066678,0.03946475,3497.6,3497.5,5.71823]
[1721646066887,6.27309,3498.1,3497.5,2.85911]
[1721646067055,0.03946475,3497.6,3497.5,2.85911]
[1721646067263,6.27309,3498.1,3497.5,2.85911]
[1721646067476,0.03946475,3497.6,3497.5,2.85911]
[1721646067681,0.03946475,3497.6,3497.5,0.571841]
[1721646067894,2.85887,3497.9,3497.4,2.85924]
[1721646068102,0.03946475,3497.6,3497.4,5.71845]
[1721646068431,2.85877,3498.0,3497.5,2.85915]
[1721646068694,1.45425744,3497.9,3497.5,2.85915]
[1721646069305,1.45425744,3497.9,3497.4,2.85919]
[1721646069306,1.45425744,3497.9,3497.6,2.85909]
[1721646069601,1.45425744,3497.8,3497.6,2.85909]
[1721646069802,1.45425744,3497.7,3497.6,2.85909]
[1721646070387,1.45425744,3498.0,3497.6,0.571828]
[1721646070586,1.45424307,3497.9,3497.7,2.85901]
[1721646070753,1.45424307,3497.8,3497.6,0.571828]
[1721646070956,1.45424307,3497.7,3497.6,0.571828]
[1721646071158,1.45424307,3497.7,3497.5,2.8591]
[1721646071400,1.45424307,3497.6,3497.5,2.8591]
[1721646071602,1.45424307,3498.0,3497.5,2.8591]
[1721646071756,1.454236,3498.0,3497.6,2.85908]
[1721646072890,1.454236,3498.0,3497.9,5.7177]
[1721646073212,2.4498,3498.8,3498.0,2.85877]
[1721646073213,8.62072228,3498.7,3498.0,2.85877]
[1721646073361,2.4719946,3498.6,3498.0,2.85877]
[1721646073702,1.4539946,3498.5,3498.0,2.85871]
[1721646073905,1.4539946,3498.5,3498.1,3.144511]
[1721646074102,0.03830409,3498.4,3498.1,3.144511]
[1721646074264,1.4539946,3498.3,3498.2,2.85861]
[1721646074471,1.49226012,3498.3,3498.2,2.85861]
[1721646076563,1.49226012,3498.3,3498.1,3.144531]
[1721646076762,1.4539946,3498.2,3498.1,3.144531]
[1721646076964,1.49224154,3498.2,3498.1,3.144531]
[1721646079985,1.49224154,3498.2,3497.9,2.85884]
[1721646079986,1.49224154,3498.2,3497.9,2.85879]
[1721646080189,0.03824694,3498.2,3498.0,2.85877]
[1721646080493,2.3378,3498.3,3497.8,2.85892]
[1721646080726,2.3378,3498.3,3497.6,2.85909]
[1721646080727,0.0359,3498.1,3497.6,2.85909]
[1721646081027,0.0359,3498.1,3497.4,2.4379]
[1721646081028,2.50779151,3498.0,3497.4,2.85921]
[1721646081241,1.4539904,3497.9,3497.5,0.529711]
[1721646081539,1.4539904,3497.9,3497.2,5.29732]
[1721646081540,3.87694,3497.8,3497.2,5.29732]
[1721646081690,6.34884,3497.8,3497.2,2.85942]
[1721646081889,0.03561057,3497.7,3497.3,2.85934]
[1721646082208,6.34884,3497.8,3497.3,2.85934]
[1721646082405,0.03557198,3497.6,3497.3,2.85934]
[1721646082717,2.4719,3497.8,3497.3,3.431224]
[1721646082920,0.0355334,3497.5,3497.3,3.431224]
[1721646083126,2.4719,3497.8,3497.3,3.431224]
[1721646083307,0.03549481,3497.4,3497.3,3.431224]
[1721646083506,2.4719,3497.8,3497.3,3.431224]
[1721646083709,1.45416659,3497.7,3497.4,2.85926]
[1721646085108,2.4719,3497.8,3497.4,2.85926]
[1721646085313,1.45415924,3497.7,3497.4,2.85926]
[1721646086895,1.45415924,3497.7,3497.2,5.71878]
[1721646087239,4.31323924,3497.7,3497.1,2.8595]
[1721646087397,2.85918,3497.5,3497.0,2.85958]
[1721646087738,1.45415924,3497.4,3497.1,2.8595]
[1721646087894,1.45415924,3497.3,3497.1,2.8595]
[1721646088091,6.34891,3497.8,3497.1,3.53321]
[1721646088092,3.4899,3497.8,3497.1,3.53321]
[1721646088336,1.45438615,3497.7,3497.1,2.8595]
[1721646088574,4.31345615,3497.7,3497.1,2.8595]
[1721646088718,1.45438615,3497.6,3497.1,2.8595]
[1721646089098,0.0355282,3497.5,3497.1,2.8595]
[1721646089314,1.45438615,3497.4,3497.1,2.8595]
[1721646089819,0.03545102,3497.3,3497.1,2.8595]
[1721646090518,2.85907,3497.7,3497.1,2.8595]
[1721646090721,0.03541242,3497.2,3496.9,5.7192]
[1721646091054,2.8591,3497.6,3497.0,2.85954]
[1721646091341,1.45438789,3497.5,3497.1,2.85949]
[1721646091925,1.45438789,3497.5,3496.9,2.8596]
[1721646092124,1.45438789,3497.5,3497.0,2.85958]
[1721646092339,4.31357789,3497.5,3497.0,2.85958]
[1721646092633,1.45438789,3497.4,3497.0,2.85958]
[1721646092834,1.45438789,3497.3,3497.0,2.85958]
[1721646093021,2.85911,3497.6,3497.0,2.85958]
[1721646093220,1.45438965,3497.5,3497.0,2.85958]
[1721646094565,1.45438965,3497.5,3497.1,2.85948]
[1721646098855,4.31367276,3497.4,3496.9,2.8596]
[1721646099003,4.31367276,3497.4,3496.8,2.85975]
[1721646099004,6.60494276,3497.3,3496.8,2.85975]
[1721646099208,5.15055,3497.3,3496.8,2.85975]
[1721646099716,2.2912,3497.3,3496.8,2.85975]
[1721646099936,2.2912,3497.3,3496.9,2.85967]
[1721646102110,2.2912,3497.3,3496.9,2.85962]
[1721646102427,2.2912,3497.3,3497.0,2.85959]
[1721646102960,2.2912,3497.3,3496.0,10.53847405]
[1721646102961,2.47245728,3497.2,3496.5,2.85995]
[1721646103123,4.31404099,3497.1,3496.5,2.85995]
[1721646103307,2.85955,3497.1,3496.5,2.85995]
[1721646103533,2.85961,3497.0,3496.5,2.85995]
[1721646104009,3.87749,3497.2,3496.5,2.85993]
[1721646104367,0.03536787,3496.9,3496.6,2.85991]
[1721646104659,0.03534928,3496.8,3496.6,2.85991]
[1721646104813,3.87749,3497.2,3496.6,2.85991]
[1721646105020,1.48997829,3497.1,3496.6,2.85991]
[1721646105325,0.03546507,3497.1,3496.6,2.85991]
[1721646106549,2.89499507,3497.1,3496.6,2.85991]
[1721646106915,2.89499507,3497.1,3496.4,2.86001]
[1721646107117,2.89499507,3497.1,3496.5,2.85995]
[1721646108212,2.89499507,3497.1,3496.4,0.627181]
[1721646108413,2.85972,3496.9,3496.4,0.627181]
[1721646108658,0.03530288,3496.8,3496.3,2.8601]
[1721646110125,0.03530288,3496.8,3496.5,2.85993]
[1721646110652,0.03521904,3496.7,3496.5,2.85993]
[1721646110843,2.85957,3497.1,3496.5,2.85993]
[1721646111013,0.03518043,3496.6,3496.5,2.85993]
[1721646111215,2.3221,3497.2,3496.7,2.85977]
[1721646111543,1.48998696,3497.1,3496.7,2.85977]
[1721646111736,0.03537393,3497.1,3496.7,2.85977]
[1721646117875,0.03537393,3497.1,3496.8,2.85973]
[1721646121373,5.415,3497.4,3496.8,2.85973]
[1721646121577,0.03467553,3497.0,3496.9,2.85967]
[1721646121776,5.415,3497.4,3496.9,2.85967]
[1721646121777,5.415,3497.4,3497.0,2.85958]
[1721646121956,1.45459194,3497.3,3497.0,2.85958]
[1721646123486,1.45459194,3497.3,3496.8,2.85968]
[1721646124180,1.45459194,3497.3,3496.9,2.85967]
[1721646124983,1.45459194,3497.3,3497.0,2.85958]
[1721646125675,9.63872228,3497.8,3497.2,2.85943]
[1721646125879,9.63872228,3497.8,3497.4,2.8592]
[1721646125880,1.45445507,3497.7,3497.4,2.8592]
[1721646126215,1.45445507,3497.7,3497.6,2.8591]
[1721646126361,2.3749,3498.1,3497.8,2.85892]
[1721646126554,1.4542507,3498.0,3497.8,2.85892]
[1721646127496,1.4542507,3498.0,3497.6,2.85904]
[1721646127787,4.3130407,3498.0,3497.4,2.85923]
[1721646128090,5.27325,3497.8,3497.2,2.85937]
[1721646128284,5.3312707,3497.7,3497.1,2.8595]
[1721646128465,6.7276507,3497.6,3497.1,2.8595]
[1721646128661,1.018,3497.3,3496.7,2.85983]
[1721646128878,2.4143,3497.1,3496.8,0.46351187]
[1721646129119,2.4143,3497.1,3496.7,2.85982]
[1721646129120,1.4542507,3497.0,3496.7,2.85982]
[1721646129795,1.4542507,3497.0,3496.9,2.85967]
[1721646130016,1.4542507,3497.2,3496.9,2.85967]
[1721646130167,1.45452665,3497.1,3496.9,2.85967]
[1721646130357,2.85919,3497.5,3496.9,2.85967]
[1721646130358,1.45452665,3497.0,3496.9,2.85967]
[1721646130596,1.45452665,3497.4,3496.9,2.85967]
[1721646130796,1.45452665,3497.4,3497.0,2.85957]
[1721646130995,1.45452665,3497.3,3497.0,2.85957]
[1721646131163,6.31262228,3497.6,3497.0,2.85957]
[1721646131164,1.45452665,3497.2,3497.0,2.85957]
[1721646131370,6.31262228,3497.6,3497.0,2.85957]
[1721646131371,1.45452665,3497.1,3497.0,2.85957]
[1721646131570,1.45452665,3497.5,3497.0,2.85957]
[1721646131872,6.31262228,3497.6,3497.0,2.85957]
[1721646131873,1.45452665,3497.4,3497.0,2.85957]
[1721646132093,6.31262228,3497.6,3497.0,2.85957]
[1721646132094,1.45452665,3497.3,3497.0,2.85957]
[1721646132294,1.45452665,3497.2,3496.8,2.85969]
[1721646132499,1.45452665,3497.1,3496.8,2.85969]
[1721646133107,1.45452665,3497.1,3496.9,2.85967]
[1721646134334,0.03289228,3497.0,3496.9,2.85967]
[1721646134535,1.48741893,3497.0,3496.9,2.85967]
[1721646135545,1.48741893,3497.0,3496.9,8.65779]
[1721646135546,0.03289228,3497.0,3496.9,8.65779]
[1721646135839,0.03289228,3497.0,3496.9,11.51746]
[1721646136039,3.59952228,3498.1,3497.6,2.85903]
[1721646136338,1.48737415,3498.0,3497.6,2.85903]
[1721646136643,1.45427605,3497.9,3497.6,2.85903]
[1721646137003,0.03298093,3497.8,3497.6,2.85903]
[1721646137349,1.45427605,3497.7,3497.6,2.85903]
[1721646137707,1.48721839,3497.7,3497.6,2.85903]
[1721646138238,1.48721839,3497.7,3497.6,3.759125]
[1721646138454,1.48721839,3497.7,3497.6,0.900095]
[1721646138672,1.48721839,3497.7,3497.5,2.85916]
[1721646138939,1.45427605,3497.6,3497.5,2.85916]
[1721646139099,1.4871798,3497.6,3497.5,2.85916]
[1721646140823,1.4871798,3497.6,3497.3,2.85934]
[1721646141040,1.4871798,3497.6,3496.9,1.22375]
[1721646141041,0.03290375,3497.6,3497.2,2.85941]
[1721646141207,1.45427076,3497.5,3497.2,2.85941]
[1721646141738,0.03298508,3497.4,3497.2,2.85941]
[1721646142134,2.4717,3497.6,3497.2,2.85941]
[1721646142311,0.03294649,3497.3,3497.2,2.85941]
[1721646142505,2.4717,3497.6,3497.2,2.85941]
[1721646142844,1.48732007,3497.5,3497.2,2.85941]
[1721646143139,0.03302367,3497.5,3497.2,2.85941]
[1721646144516,0.03302367,3497.5,3497.3,2.85933]
[1721646144711,0.03302367,3497.5,3497.3,0.571874]
[1721646144912,5.25712,3497.9,3497.4,2.85921]
[1721646144913,2.3982,3497.9,3497.4,2.85921]
[1721646145108,1.45427456,3497.8,3497.5,2.85918]
[1721646145327,1.45427456,3497.8,3497.3,3.431154]
[1721646145645,4.31321456,3497.8,3497.3,3.431154]
[1721646145821,1.45427456,3497.7,3497.3,2.85928]
[1721646147025,4.31330456,3497.7,3497.1,2.85945]
[1721646147544,2.85903,3497.7,3497.1,2.85945]
[1721646148056,2.85903,3497.7,3497.2,2.85941]
[1721646148261,5.2571,3497.9,3497.3,2.85934]
[1721646148560,5.2571,3497.9,3497.1,2.85945]
[1721646148735,2.85902,3497.7,3497.1,2.85945]
[1721646148944,2.85902,3497.7,3497.2,2.85942]
[1721646149165,0.03305018,3497.6,3497.2,2.85942]
[1721646152930,2.89216018,3497.6,3497.0,5.30977]
[1721646153131,2.8592,3497.5,3497.0,5.30977]
[1721646153331,5.30821159,3497.5,3496.8,2.85968]
[1721646153678,5.30821159,3497.5,3496.9,0.98175417]
[1721646154230,5.30821159,3497.5,3496.9,3.84139417]
[1721646154641,2.44901159,3497.5,3497.0,5.7191]
[1721646154941,2.44901159,3497.5,3497.0,2.85952]
[1721646157481,5.30821159,3497.5,3497.0,2.85952]
[1721646158672,5.30821159,3497.5,3496.9,0.98175417]
[1721646158890,2.85947,3497.2,3496.7,5.33946]
[1721646159061,2.85947,3497.2,3496.7,2.85976]
[1721646159263,0.03174427,3497.1,3496.7,2.85976]
[1721646162393,0.03174427,3497.1,3496.6,3.46020171]
[1721646163287,2.45904427,3497.1,3496.6,3.46020171]
[1721646163591,5.31855427,3497.1,3496.6,0.60029171]
[1721646163795,5.31855427,3497.1,3496.6,4.43636718]
[1721646164887,5.31855427,3497.1,3496.6,3.83607547]
[1721646164888,2.45904427,3497.1,3496.6,3.83607547]
[1721646165050,2.45904427,3497.1,3496.7,2.85982]
[1721646166153,2.45904427,3497.1,3496.7,2.85978]
[1721646168507,0.03174427,3497.1,3496.7,2.85978]
[1721646168806,5.23839,3497.3,3496.7,3.63117555]
[1721646168965,0.03058414,3497.0,3496.7,3.63117555]
[1721646169396,5.23839,3497.3,3496.7,3.63117555]
[1721646169698,5.23839,3497.3,3496.7,2.85978]
[1721646169897,0.03066133,3497.2,3496.7,2.85978]
[1721646170088,0.03066133,3497.2,3496.8,2.85974]
[1721646170283,5.23839,3497.3,3496.8,2.85974]
[1721646170503,0.03062273,3497.1,3496.8,2.85974]
[1721646170906,0.03058414,3497.0,3496.8,2.85974]
[1721646171216,5.23839,3497.3,3496.8,2.85974]
[1721646171713,2.89009133,3497.2,3496.5,3.87795]
[1721646171861,2.89009133,3497.2,3496.7,2.85983]
[1721646176430,2.89009133,3497.2,3496.7,5.71961]
[1721646176608,2.89009133,3497.2,3496.7,2.85978]
[1721646176771,2.89009133,3497.2,3496.7,5.71955]
[1721646176772,0.03066133,3497.2,3496.7,5.71955]
[1721646176971,0.03066133,3497.2,3496.8,2.85975]
[1721646177308,5.23835,3497.3,3496.8,2.85975]
[1721646177519,0.030618,3497.1,3496.8,2.85975]
[1721646177715,5.23835,3497.3,3496.8,2.85975]
[1721646177924,0.0305794,3497.0,3496.8,2.85975]
[1721646178226,5.23835,3497.3,3496.8,2.85975]
[1721646178679,0.03055655,3497.2,3496.8,2.85975]
[1721646178876,5.23835,3497.3,3496.8,2.85975]
[1721646179078,0.03055655,3497.2,3496.8,2.85975]
[1721646179282,5.23835,3497.3,3496.8,2.85975]
[1721646179579,0.03051795,3497.1,3496.6,2.85991]
[1721646179787,2.88998655,3497.2,3496.6,3.90198859]
[1721646179979,0.03047935,3497.0,3496.6,3.90198859]
[1721646180209,0.03051795,3497.1,3496.6,3.90198859]
[1721646180409,0.03044075,3496.9,3496.6,3.90198859]
[1721646180606,2.85943,3497.2,3496.6,3.90198859]
[1721646180607,0.03047935,3497.0,3496.6,1.04207859]
[1721646180808,0.03040215,3496.8,3496.5,2.85993]
[1721646181115,0.03040833,3496.7,3496.5,2.85993]
[1721646181322,2.85943,3497.2,3496.6,2.85992]
[1721646181917,2.85943,3497.2,3496.6,2.85986]
[1721646182088,2.85943,3497.2,3496.6,2.85985]
[1721646182518,2.85943,3497.2,3496.6,5.71972]
[1721646183087,2.85943,3497.2,3496.6,2.85985]
[1721646184152,2.85952,3497.1,3496.6,2.85985]
[1721646185301,2.85943,3497.2,3496.6,2.85985]
[1721646185502,2.85943,3497.2,3496.6,5.7197]
[1721646185703,2.85943,3497.2,3496.7,2.85979]
[1721646192861,5.23835,3497.3,3496.8,2.8597]
[1721646194169,0.03052811,3497.2,3496.8,2.8597]
[1721646194330,5.23835,3497.3,3496.8,2.8597]
[1721646194529,0.02943214,3497.1,3496.8,2.8597]
[1721646194756,5.23835,3497.3,3496.8,2.8597]
[1721646194956,0.02939354,3497.0,3496.8,2.8597]
[1721646195167,5.23835,3497.3,3496.8,2.8597]
[1721646195474,0.02935494,3496.9,3496.8,2.8597]
[1721646195683,5.23835,3497.3,3496.8,2.8597]
[1721646195969,2.85935,3497.3,3496.8,2.8597]
[1721646196287,0.02947074,3497.2,3496.8,2.8597]
[1721646196633,2.85935,3497.3,3496.8,2.8597]
[1721646196949,6.48691228,3497.5,3496.8,2.8597]
[1721646196950,0.02945073,3497.2,3497.0,2.85959]
[1721646197161,9.34617228,3497.5,3496.8,2.85967]
[1721646197365,9.34617228,3497.5,3496.9,2.85967]
[1721646197366,0.02943214,3497.1,3496.9,2.85967]
[1721646197683,2.85927,3497.4,3496.9,2.85967]
[1721646197876,0.02939354,3497.0,3496.9,2.85967]
[1721646198372,4.05999228,3497.4,3496.9,2.85967]
[1721646198579,0.02939354,3497.0,3496.9,2.85967]
[1721646198883,1.20072228,3497.5,3497.1,2.8595]
[1721646199187,4.05990228,3497.6,3497.1,2.8595]
[1721646199469,1.20072228,3497.5,3497.1,2.8595]
[1721646199855,4.05990228,3497.5,3496.9,2.85961]
[1721646200268,1.20072228,3497.5,3497.0,2.85955]
[1721646201468,4.05990228,3497.5,3497.0,2.85955]
[1721646201667,4.05990228,3497.5,3496.7,4.05929171]
[1721646201668,2.85927,3497.4,3496.8,2.85968]
[1721646201843,4.05990228,3497.5,3496.8,2.85968]
[1721646201844,2.3405,3497.3,3496.9,0.99423818]
[1721646202049,2.3405,3497.3,3496.9,2.85965]
[1721646204770,2.3405,3497.3,3496.9,2.85961]
[1721646204980,2.3405,3497.3,3496.9,5.71923]
[1721646205157,2.85926,3497.4,3496.9,5.71923]
[1721646205346,2.85926,3497.4,3496.9,5.71922]
[1721646205551,3.57562228,3497.5,3497.1,2.85946]
[1721646207237,1.20072228,3497.5,3497.1,2.85946]
[1721646209171,0.02935626,3497.4,3497.1,2.85946]
[1721646211871,0.02935626,3497.4,3496.9,2.8596]
[1721646212456,2.88863626,3497.4,3496.9,2.8596]
[1721646213945,2.3805,3497.3,3496.9,2.8596]
[1721646214283,2.40895016,3497.3,3496.9,2.8596]
[1721646214963,2.40895016,3497.3,3496.9,5.71923]
[1721646215177,2.40895016,3497.3,3496.9,2.8596]
[1721646216139,2.40895016,3497.3,3496.9,5.71923]
[1721646217162,2.40895016,3497.3,3496.9,2.8596]
[1721646218675,5.26830016,3497.3,3496.7,5.90106171]
[1721646218851,2.40895016,3497.3,3496.9,2.85967]
[1721646229216,2.40895016,3497.3,3496.8,2.85975]
[1721646229414,2.40895016,3497.3,3496.9,0.99424072]
[1721646229726,5.26830016,3497.3,3496.8,2.85975]
[1721646229866,5.26830016,3497.3,3496.9,0.99424209]
[1721646230068,5.26830016,3497.3,3496.8,2.85975]
[1721646230268,2.40895016,3497.3,3496.9,3.85390172]
[1721646230463,2.40895016,3497.3,3497.0,2.85958]
[1721646231307,2.40895016,3497.3,3497.1,2.85946]
[1721646231543,0.02845016,3497.3,3497.1,2.85946]
[1721646232120,3.60562228,3497.6,3497.1,2.85946]
[1721646232304,0.02789958,3497.2,3497.1,2.85946]
[1721646232478,1.20072228,3497.7,3497.4,2.85923]
[1721646232809,1.20072228,3497.7,3497.4,2.85921]
[1721646233020,1.20072228,3497.8,3497.4,2.85921]
[1721646233581,1.20072228,3497.8,3497.6,2.85909]
[1721646234519,3.61272228,3497.9,3497.6,2.85909]
[1721646235595,3.61272228,3497.9,3497.4,5.71838]
[1721646235796,3.61272228,3497.9,3497.5,2.85916]
[1721646238996,0.02862524,3497.8,3497.5,2.85916]
[1721646240654,0.02862524,3497.8,3497.7,2.85902]
[1721646240825,0.02862524,3497.8,3497.6,2.85904]
[1721646240826,1.20072228,3498.0,3497.8,2.85889]
[1721646241035,1.20072228,3498.2,3497.9,2.85885]
[1721646241620,3.68002228,3498.3,3497.9,2.85885]
[1721646242222,1.20072228,3498.4,3498.1,2.85867]
[1721646242539,3.46052228,3498.5,3497.9,2.85878]
[1721646242705,6.31891228,3498.5,3497.9,2.85878]
[1721646242903,7.78845439,3498.5,3497.9,2.85878]
[1721646243326,7.78845439,3498.5,3497.9,5.71757]
[1721646243552,7.78845439,3498.5,3497.9,2.85878]
[1721646243931,7.78845439,3498.5,3497.9,5.71757]
[1721646244269,7.78845439,3498.5,3497.9,2.85878]
[1721646244559,7.78845439,3498.5,3497.9,5.71758]
[1721646244560,6.58773211,3498.5,3497.9,5.71758]
[1721646244738,6.58773211,3498.5,3497.9,2.85878]
[1721646245109,6.58773211,3498.5,3497.9,5.71757]
[1721646245525,5.11819,3498.5,3497.9,5.71757]
[1721646245946,5.11819,3498.5,3498.0,2.85876]
[1721646249733,5.11819,3498.5,3497.8,2.85887]
[1721646249938,5.11819,3498.5,3497.9,2.85881]
[1721646250103,5.11819,3498.5,3498.0,2.85876]
[1721646253364,6.13770523,3498.5,3498.0,2.85876]
[1721646253558,6.13770523,3498.5,3497.5,2.896434]
[1721646253559,1.018,3498.4,3497.5,2.896434]
[1721646253758,1.018,3498.4,3497.9,2.85885]
[1721646253968,1.018,3498.4,3497.8,2.85889]
[1721646254175,2.88636447,3498.3,3497.8,2.85889]
[1721646254838,0.02783447,3498.3,3497.9,2.85883]
[1721646255035,0.02783447,3498.3,3497.8,2.85887]
[1721646255240,2.88637447,3498.3,3497.8,2.85887]
[1721646255768,3.87683,3498.0,3497.4,2.8592]
[1721646255973,2.2657,3497.9,3497.4,2.8592]
[1721646256123,2.29348018,3497.9,3497.4,2.8592]
[1721646256546,2.29348018,3497.9,3497.5,2.85918]
[1721646257470,2.29348018,3497.9,3497.6,2.85909]
[1721646263856,2.29348018,3497.9,3497.5,2.85914]
[1721646267680,2.29348018,3497.9,3497.4,2.85925]
[1721646268266,2.29348018,3497.9,3497.5,2.85916]
[1721646276876,2.29348018,3497.9,3497.2,6.24298]
[1721646276877,5.15234018,3497.9,3497.2,6.24298]
[1721646277203,2.29348018,3497.9,3497.4,2.85921]
[1721646278073,2.29348018,3497.9,3497.5,2.85914]
[1721646282393,5.15233018,3497.9,3497.4,2.85924]
[1721646282902,5.15233018,3497.9,3497.3,2.85934]
[1721646283092,2.85901,3497.8,3497.4,0.99409115]
[1721646283404,2.85901,3497.8,3497.2,3.45967171]
[1721646283405,2.3241,3497.6,3497.2,3.45967171]
[1721646283612,2.3241,3497.6,3497.3,2.4852371]
[1721646283769,0.02691054,3497.5,3497.1,3.45978171]
[1721646283974,0.02691054,3497.5,3497.2,2.4852916]
[1721646284286,0.02691054,3497.5,3497.3,2.4852916]
[1721646284490,0.02691054,3497.5,3496.9,3.45995171]
[1721646284491,2.88615054,3497.5,3496.9,3.45995171]
[1721646284726,2.3833,3497.4,3496.9,2.85966]
[1721646285077,0.02730533,3497.3,3496.9,2.85966]
[1721646286214,0.02730533,3497.3,3496.9,2.85961]
[1721646289024,0.02730533,3497.3,3497.0,2.85957]
[1721646296239,0.02730533,3497.3,3496.8,2.85969]
[1721646296397,2.3441,3497.1,3496.6,2.85987]
[1721646296600,2.3441,3497.1,3496.7,0.99426797]
[1721646296800,0.02677293,3497.0,3496.6,2.85987]
[1721646296996,0.02677293,3497.0,3496.7,0.99427492]
[1721646297343,0.02677293,3497.0,3496.6,2.85987]
[1721646297640,0.02677293,3497.0,3496.7,0.99427577]
[1721646297846,0.02677293,3497.0,3496.6,2.85987]
[1721646298137,0.02677293,3497.0,3496.7,0.99427564]
[1721646298344,0.02677293,3497.0,3496.7,2.85983]
[1721646301623,0.02677293,3497.0,3496.7,2.85978]
[1721646301799,0.02677293,3497.0,3496.9,2.85967]
[1721646302211,2.4483,3497.4,3497.1,2.8595]
[1721646302399,5.28023,3497.7,3497.1,2.8595]
[1721646302599,5.28023,3497.7,3497.2,2.85942]
[1721646304049,5.28023,3497.7,3497.1,2.85949]
[1721646304212,1.77778523,3497.6,3497.1,2.85949]
[1721646304410,1.77778523,3497.6,3497.2,2.85942]
[1721646306762,1.77778523,3497.6,3496.9,2.85964]
[1721646307465,4.63693523,3497.6,3497.1,2.85951]
[1721646307769,2.4527,3497.4,3496.9,2.85961]
[1721646308436,2.4527,3497.4,3497.0,2.85959]
[1721646309450,5.31198,3497.4,3496.8,2.85969]
[1721646309631,2.4527,3497.4,3496.8,2.85969]
[1721646309967,5.31196,3497.4,3496.8,2.85969]
[1721646310459,6.230881,3497.4,3496.8,2.85969]
[1721646310864,6.230881,3497.4,3496.7,2.85978]
[1721646311166,6.230881,3497.4,3496.8,2.8597]
[1721646311463,6.230881,3497.4,3496.7,2.85983]
[1721646311760,6.230881,3497.4,3496.8,2.85975]
[1721646312138,2.85936,3497.3,3496.8,2.85975]
[1721646313351,2.85936,3497.3,3496.6,2.85991]
[1721646313555,5.26327,3497.2,3496.6,2.85991]